Body Name,Body,Service Level,Expense Type,Expense Code,Narrative,Date,Transaction Number,Amount,Capital and Revenue,Supplier Name,Supplier ID
South Ribble Borough Council,http://statistics.data.gov.uk/id/local-authority/30UE,Surplus or Deficit on Trading,Reactive Repair & Maintenance,2020,Window cleaning at Leyland Civic Centre as per NAME REDACTED,19/08/2022,0000481027,"3,000.00",Revenue,A 2 Clean Ltd,0
South Ribble Borough Council,http://statistics.data.gov.uk/id/local-authority/30UE,Open Spaces,Agency Staff,1121,NAME REDACTED - W/C 18th July 2022,12/08/2022,0000480625,508.75,Revenue,ACE PERSONNEL,0
South Ribble Borough Council,http://statistics.data.gov.uk/id/local-authority/30UE,Open Spaces,Agency Staff,1121,NAME REDACTED - W/C 18th July 2022,12/08/2022,0000480626,536.25,Revenue,ACE PERSONNEL,0
South Ribble Borough Council,http://statistics.data.gov.uk/id/local-authority/30UE,Open Spaces,Agency Staff,1121,NAME REDACTED - W/C 25th July 2022,12/08/2022,0000480774,522.50,Revenue,ACE PERSONNEL,0
South Ribble Borough Council,http://statistics.data.gov.uk/id/local-authority/30UE,Open Spaces,Agency Staff,1121,NAME REDACTED w/c 1.8.22 ,19/08/2022,0000480909,110.00,Revenue,ACE PERSONNEL,0
South Ribble Borough Council,http://statistics.data.gov.uk/id/local-authority/30UE,Open Spaces,Agency Staff,1121,NAME REDAC - w/c 1.8.22,19/08/2022,0000480909,412.50,Revenue,ACE PERSONNEL,0
South Ribble Borough Council,http://statistics.data.gov.uk/id/local-authority/30UE,Central Support Services,Maintenance & Repair,4013,Repair to Extron Wall Plate Module In the Shield Room Repair of Extron DTP T UWP 4K 232 D - S/N A1TLCDL installation onsite including testing,05/08/2022,0000480403,419.80,Revenue,ACTIVE AV LTD,0
South Ribble Borough Council,http://statistics.data.gov.uk/id/local-authority/30UE,Economic Development,Reactive Repair & Maintenance,2020,"Supply and fit freestanding double bowl stainless sink unit along with tap To provide hot, cold, and waste from the fish monger stall",12/08/2022,0000480688,"1,640.00",Revenue,Ainscoe Plumbing & Heating Ltd,0
South Ribble Borough Council,http://statistics.data.gov.uk/id/local-authority/30UE,Surplus or Deficit on Trading,Reactive Repair & Maintenance,2020,To remove existing w/c and alter pipework to allow new toilet to be positioned facing the door To supply and fit new w/c and seat ,12/08/2022,0000480689,780.00,Revenue,Ainscoe Plumbing & Heating Ltd,0
South Ribble Borough Council,http://statistics.data.gov.uk/id/local-authority/30UE,Central Support Services,Reactive Repair & Maintenance,2020,To supply and fit new zip hydroboil in The Coppice at the Civic Centre as per NAME REDACTED request ,12/08/2022,0000480776,"1,080.00",Revenue,Ainscoe Plumbing & Heating Ltd,0
South Ribble Borough Council,http://statistics.data.gov.uk/id/local-authority/30UE,Central Support Services,Other Fees,4520,CTS SCHEME FOR 2023-2024,26/08/2022,0000481099,550.00,Revenue,AIREY CONSULTANCY LTD T/A ACS LTD,0
South Ribble Borough Council,http://statistics.data.gov.uk/id/local-authority/30UE,Central Support Services,Consultancy Fees,4541,"PSDS3, decarbonisation works to the Civic Centre, Moss Side Depot, South Ribble Tennis Centre, Leyland, Penwortham",12/08/2022,0000480627,"59,834.40",Revenue,Alliance Leisure Services Limited,0
South Ribble Borough Council,http://statistics.data.gov.uk/id/local-authority/30UE,Local Tax Collection,Bank Charges,4811,post office,12/08/2022,0000480729,571.78,Revenue,ALLPAY LTD,0
South Ribble Borough Council,http://statistics.data.gov.uk/id/local-authority/30UE,Local Tax Collection,Bank Charges,4811,paypoint,12/08/2022,0000480729,83.04,Revenue,ALLPAY LTD,0
South Ribble Borough Council,http://statistics.data.gov.uk/id/local-authority/30UE,Local Tax Collection,Bank Charges,4811,webcon,12/08/2022,0000480729,46.00,Revenue,ALLPAY LTD,0
South Ribble Borough Council,http://statistics.data.gov.uk/id/local-authority/30UE,Central Support Services,Agency Staff,1121,Agency Staff w/c 13.6.22,05/08/2022,0000479691,"5,217.59",Revenue,ALS Managed Services Ltd,0
South Ribble Borough Council,http://statistics.data.gov.uk/id/local-authority/30UE,Central Support Services,Agency Staff,1121,Agency Staff w/c 27.6.22,05/08/2022,0000480274,"5,736.71",Revenue,ALS Managed Services Ltd,0
South Ribble Borough Council,http://statistics.data.gov.uk/id/local-authority/30UE,Central Support Services,Agency Staff,1121,Agency Staff w/c 4.7.22,05/08/2022,0000480389,"6,752.54",Revenue,ALS Managed Services Ltd,0
South Ribble Borough Council,http://statistics.data.gov.uk/id/local-authority/30UE,Central Support Services,Agency Staff,1121,Agency Staff w/c 11.7.22,05/08/2022,0000480457,"7,687.90",Revenue,ALS Managed Services Ltd,0
South Ribble Borough Council,http://statistics.data.gov.uk/id/local-authority/30UE,Central Support Services,Agency Staff,1121,Agency Staff w/c 18.7.22,05/08/2022,0000480719,"7,578.95",Revenue,ALS Managed Services Ltd,0
South Ribble Borough Council,http://statistics.data.gov.uk/id/local-authority/30UE,Central Support Services,Agency Staff,1121,Agency Staff w/c 20.6.22,12/08/2022,0000480940,"6,370.74",Revenue,ALS Managed Services Ltd,0
South Ribble Borough Council,http://statistics.data.gov.uk/id/local-authority/30UE,Central Support Services,Agency Staff,1121,Agency Staff w/c 25.7.22,12/08/2022,0000480945,"7,667.58",Revenue,ALS Managed Services Ltd,0
South Ribble Borough Council,http://statistics.data.gov.uk/id/local-authority/30UE,Central Support Services,Agency Staff,1121,Agency Staff w/e 07/08/2022,19/08/2022,0000481024,"8,223.50",Revenue,ALS Managed Services Ltd,0
South Ribble Borough Council,http://statistics.data.gov.uk/id/local-authority/30UE,Surplus or Deficit on Trading,Reactive Repair & Maintenance,2020,Flashing repairs to both sides of  ADDRESS REDACTED,19/08/2022,0000481030,"2,975.00",Revenue,AMS Cladding,0
South Ribble Borough Council,http://statistics.data.gov.uk/id/local-authority/30UE,Recreation & Sport,Water Charges(Metered),2511,7/7 to 6/8/22,26/08/2022,0000481137,931.05,Revenue,Anglian Water Business (National) t/as Wave Utilit,0
South Ribble Borough Council,http://statistics.data.gov.uk/id/local-authority/30UE,Recreation & Sport,Water Charges(Metered),2511,7/7 to 6/8/22,26/08/2022,0000481138,"1,290.97",Revenue,Anglian Water Business (National) t/as Wave Utilit,0
South Ribble Borough Council,http://statistics.data.gov.uk/id/local-authority/30UE,Recreation & Sport,Water Charges(Metered),2511,7/7 to 6/8/22,26/08/2022,0000481139,"2,334.36",Revenue,Anglian Water Business (National) t/as Wave Utilit,0
South Ribble Borough Council,http://statistics.data.gov.uk/id/local-authority/30UE,Recreation & Sport,Water Charges(Metered),2511,7/7 to 6/8/22,26/08/2022,0000481140,885.97,Revenue,Anglian Water Business (National) t/as Wave Utilit,0
South Ribble Borough Council,http://statistics.data.gov.uk/id/local-authority/30UE,Recreation & Sport,Water Charges(Metered),2511,7/7 to 6/8/22,26/08/2022,0000481141,292.92,Revenue,Anglian Water Business (National) t/as Wave Utilit,0
South Ribble Borough Council,http://statistics.data.gov.uk/id/local-authority/30UE,Central Support Services,Clothing and Uniforms,4410,HI-VISWATERPROOF TROUSERS -   1894205 SMALL,05/08/2022,0000478981,78.42,Revenue,ARCO,0
South Ribble Borough Council,http://statistics.data.gov.uk/id/local-authority/30UE,Central Support Services,Clothing and Uniforms,4410,HI-VISWATERPROOF TROUSERS -   1894205 MEDIUM,05/08/2022,0000478981,261.40,Revenue,ARCO,0
South Ribble Borough Council,http://statistics.data.gov.uk/id/local-authority/30UE,Central Support Services,Clothing and Uniforms,4410,HI-VISWATERPROOF TROUSERS -   1894205 LARGE,05/08/2022,0000478981,261.40,Revenue,ARCO,0
South Ribble Borough Council,http://statistics.data.gov.uk/id/local-authority/30UE,Central Support Services,Clothing and Uniforms,4410,HI-VISWATERPROOF TROUSERS -   1894205 EXTRA LARGE,05/08/2022,0000478981,156.84,Revenue,ARCO,0
South Ribble Borough Council,http://statistics.data.gov.uk/id/local-authority/30UE,Central Support Services,Clothing and Uniforms,4410,HI-VISWATERPROOF TROUSERS -   1894205 XXL,05/08/2022,0000478981,104.56,Revenue,ARCO,0
South Ribble Borough Council,http://statistics.data.gov.uk/id/local-authority/30UE,Central Support Services,Clothing and Uniforms,4410,Safety Helmet 4V8700,05/08/2022,0000478981,54.40,Revenue,ARCO,0
South Ribble Borough Council,http://statistics.data.gov.uk/id/local-authority/30UE,Central Support Services,Clothing and Uniforms,4410, HI-VIS WATERPROOF TROUSERS -  EXTRA LARGE 1894206,05/08/2022,0000480080,48.40,Revenue,ARCO,0
South Ribble Borough Council,http://statistics.data.gov.uk/id/local-authority/30UE,Central Support Services,Clothing and Uniforms,4410, BOOTS � ROCKFALL EBONITE -SIZE 8 B800153,05/08/2022,0000480080,106.20,Revenue,ARCO,0
South Ribble Borough Council,http://statistics.data.gov.uk/id/local-authority/30UE,Central Support Services,Clothing and Uniforms,4410,SUNGLASSES - SUNGLARE FILTER UVEX 3U0300,05/08/2022,0000480080,95.58,Revenue,ARCO,0
South Ribble Borough Council,http://statistics.data.gov.uk/id/local-authority/30UE,Capital,Capital Grant,C570,DFG WORK FOR ADAPTATION TO CREATE A BEDROOM/BATHROOM ADAPTATION AT ADDRESS REDACTED,05/08/2022,0000480479,"28,320.60",Revenue,ASH BARN CONSTRUCTION LTD,0
South Ribble Borough Council,http://statistics.data.gov.uk/id/local-authority/30UE,Recycling,Materials General,4040,300x A6 Wheelie Bin Stickers as per quotation 167994,26/08/2022,0000480785,233.00,Revenue,B & D PRINT SERVICES LTD,0
South Ribble Borough Council,http://statistics.data.gov.uk/id/local-authority/30UE,Recycling,Materials General,4040,100x A4 Wheelie Bin Stickers as per quotation 167992,26/08/2022,0000480785,223.00,Revenue,B & D PRINT SERVICES LTD,0
South Ribble Borough Council,http://statistics.data.gov.uk/id/local-authority/30UE,Recycling,Materials General,4040,100x A5 Wheelie Bin Stickers as per quotation 167993,26/08/2022,0000480785,161.00,Revenue,B & D PRINT SERVICES LTD,0
South Ribble Borough Council,http://statistics.data.gov.uk/id/local-authority/30UE,Central Support Services,Materials General,4040,Ram PJ69 NWG JFC 18638,19/08/2022,0000480225,"1,075.76",Revenue,BALMERS GM LTD,0
South Ribble Borough Council,http://statistics.data.gov.uk/id/local-authority/30UE,Central Support Services,Materials General,4040,3 tubs hydraulic oil PJ69 NWG JFC18191,12/08/2022,0000480691,269.61,Revenue,BALMERS GM LTD,0
South Ribble Borough Council,http://statistics.data.gov.uk/id/local-authority/30UE,Central Support Services,Materials General,4040,Drive unit TMS 05 TR JFC 18633,12/08/2022,0000480788,896.32,Revenue,BALMERS GM LTD,0
South Ribble Borough Council,http://statistics.data.gov.uk/id/local-authority/30UE,Economic Development,Professional Fees,4510,We love South Ribble Campaign - radio advertising,19/08/2022,0000480997,"2,410.56",Revenue,BAUER RADIO LTD,0
South Ribble Borough Council,http://statistics.data.gov.uk/id/local-authority/30UE,Open Spaces,External Contractors Charges,4570,Electrical disconnections and connections to ADDRESSES REDACTED,12/08/2022,0000480215,407.00,Revenue,BELEC ELECTRICAL LTD,0
South Ribble Borough Council,http://statistics.data.gov.uk/id/local-authority/30UE,Central Support Services,Reactive Repair & Maintenance,2020,"To install new power supply to the post room at Moss side. New electrical roller shutter fitted today by Avalon Doors, as per NAME REDACTED",12/08/2022,0000480789,275.00,Revenue,BELEC ELECTRICAL LTD,0
South Ribble Borough Council,http://statistics.data.gov.uk/id/local-authority/30UE,Community Development,Operational Equip & Tools,4010,"Installation of 4 de-fibs, materials and labour, as discussed and agreed,",12/08/2022,0000480808,"1,320.00",Revenue,BELEC ELECTRICAL LTD,0
South Ribble Borough Council,http://statistics.data.gov.uk/id/local-authority/30UE,Recreation & Sport,Materials General,4040,Xplorer Annual Subscription Service Pack 2,12/08/2022,0000480631,400.00,Revenue,British Oreinteering,0
South Ribble Borough Council,http://statistics.data.gov.uk/id/local-authority/30UE,Surplus or Deficit on Trading,Reactive Repair & Maintenance,2020,Please supply paint as per Facilities Officer request to be collected or delivered as per telephone request by Officer,19/08/2022,0000480914,576.40,Revenue,BROMBOROUGH PAINTS,0
South Ribble Borough Council,http://statistics.data.gov.uk/id/local-authority/30UE,Central Support Services,Materials General,4040,Radiator RV14 DTZ JFC 18648,12/08/2022,0000480550,"1,044.58",Revenue,Bucher Municipal Ltd,0
South Ribble Borough Council,http://statistics.data.gov.uk/id/local-authority/30UE,Central Support Services,Hiring Expenses,3212,Hire of 26 Tonne RCV refuse collection vehicle to cover repairs for three weeks,26/08/2022,0000480919,720.00,Revenue,C P DAVIDSON & SONS LTD,0
South Ribble Borough Council,http://statistics.data.gov.uk/id/local-authority/30UE,Central Support Services,Agency Staff,1121,Planning consultant to deal with Cuerdale Garden Village application.,12/08/2022,0000480429,"3,565.00",Revenue,CAPITA PROPERTY AND INFRASTRUCTURE LTD,0
South Ribble Borough Council,http://statistics.data.gov.uk/id/local-authority/30UE,Capital,Cap Contract Payment,C230,Worden Hall - Temporary Furniture Hire with delivery of Tuesday 24 May 2022 to Worden Hall,12/08/2022,0000480619,"3,690.90",Revenue,Childwall Table and Chair Hire,0
South Ribble Borough Council,http://statistics.data.gov.uk/id/local-authority/30UE,Homelessness,Contributions to Other Bodies,4730,ADDRRESS AND NAME REDACTED - RENT 01.07.22  31.07.22  31 Days ,19/08/2022,0000480753,997.90,Revenue,CHORLEY BOROUGH COUNCIL,0
South Ribble Borough Council,http://statistics.data.gov.uk/id/local-authority/30UE,Economic Development,Intruder Alarm,2035,"Annual Contract 2022/2023  number  1584652	Intruder Alarm	Leyland Market Northcote Street	",19/08/2022,0000480697,419.00,Revenue,CHUBB LTD,0
South Ribble Borough Council,http://statistics.data.gov.uk/id/local-authority/30UE,Central Support Services,Intruder Alarm,2035,Replace the 3 x faulty bullet cameras as per engineer NAME REDACTED.3 TruVision HD-TVI Bullet Camera2MPX ,19/08/2022,0000480920,259.25,Revenue,CHUBB LTD,0
South Ribble Borough Council,http://statistics.data.gov.uk/id/local-authority/30UE,Homelessness,Temporary Accommodation,5311,NAME REDACTED 25/07/2022-01/08/2022 7 nights ,05/08/2022,0000480614,696.50,Revenue,CLAREMONT HOTEL,0
South Ribble Borough Council,http://statistics.data.gov.uk/id/local-authority/30UE,Homelessness,Temporary Accommodation,5311,NAME REDACTED 25/07/2022-01/08/2022 7 nights,05/08/2022,0000480614,696.50,Revenue,CLAREMONT HOTEL,0
South Ribble Borough Council,http://statistics.data.gov.uk/id/local-authority/30UE,Homelessness,Temporary Accommodation,5311,NAME REDACTED 25/07/2022-01/08/2022 7 nights ,05/08/2022,0000480614,525.00,Revenue,CLAREMONT HOTEL,0
South Ribble Borough Council,http://statistics.data.gov.uk/id/local-authority/30UE,Homelessness,Contributions to Other Bodies,4730,NAME REDACTED 25/07/2022-01/08/2022 7 nights ,05/08/2022,0000480614,315.00,Revenue,CLAREMONT HOTEL,0
South Ribble Borough Council,http://statistics.data.gov.uk/id/local-authority/30UE,Homelessness,Temporary Accommodation,5311,NAME REDACTED 25/07/2022-01/08/2022 7 nights ,05/08/2022,0000480614,315.00,Revenue,CLAREMONT HOTEL,0
South Ribble Borough Council,http://statistics.data.gov.uk/id/local-authority/30UE,Homelessness,Temporary Accommodation,5311,NAME REDACTED 25/07/2022-01/08/2022 7 nights ,05/08/2022,0000480614,315.00,Revenue,CLAREMONT HOTEL,0
South Ribble Borough Council,http://statistics.data.gov.uk/id/local-authority/30UE,Homelessness,Temporary Accommodation,5311,NAME REDACTED 10/07/2022-18/07/2022 8 nights + 18/07/2022-25/07/2022 7 nights ,05/08/2022,0000480615,796.00,Revenue,CLAREMONT HOTEL,0
South Ribble Borough Council,http://statistics.data.gov.uk/id/local-authority/30UE,Homelessness,Temporary Accommodation,5311,NAME REDACTED 18/07/2022-25/07/2022 7 nights ,05/08/2022,0000480615,696.50,Revenue,CLAREMONT HOTEL,0
South Ribble Borough Council,http://statistics.data.gov.uk/id/local-authority/30UE,Homelessness,Temporary Accommodation,5311,NAME REDACTED 18/07/2022-25/07/2022 7 nights ,05/08/2022,0000480615,525.00,Revenue,CLAREMONT HOTEL,0
South Ribble Borough Council,http://statistics.data.gov.uk/id/local-authority/30UE,Homelessness,Temporary Accommodation,5311,NAME REDACTED 18/07/2022-25/07/2022 7 nights ,05/08/2022,0000480615,525.00,Revenue,CLAREMONT HOTEL,0
South Ribble Borough Council,http://statistics.data.gov.uk/id/local-authority/30UE,Homelessness,Contributions to Other Bodies,4730,NAME REDACTED 18/07/2022-25/07/2022 7 nights ,05/08/2022,0000480615,315.00,Revenue,CLAREMONT HOTEL,0
South Ribble Borough Council,http://statistics.data.gov.uk/id/local-authority/30UE,Homelessness,Temporary Accommodation,5311,NAME REDACTED 18/07/2022-25/07/2022 7 nights ,05/08/2022,0000480615,315.00,Revenue,CLAREMONT HOTEL,0
South Ribble Borough Council,http://statistics.data.gov.uk/id/local-authority/30UE,Homelessness,Temporary Accommodation,5311,NAME REDACTED 18/07/2022-25/07/2022 7 nights ,05/08/2022,0000480615,315.00,Revenue,CLAREMONT HOTEL,0
South Ribble Borough Council,http://statistics.data.gov.uk/id/local-authority/30UE,Homelessness,Temporary Accommodation,5311,NAME REDACTED and child 7 nights  04/07/2022-11/07/2022,05/08/2022,0000480698,525.00,Revenue,CLAREMONT HOTEL,0
South Ribble Borough Council,http://statistics.data.gov.uk/id/local-authority/30UE,Homelessness,Temporary Accommodation,5311,NAME REDACTED 7 nights 04/07/2022-11/07/2022,05/08/2022,0000480699,696.50,Revenue,CLAREMONT HOTEL,0
South Ribble Borough Council,http://statistics.data.gov.uk/id/local-authority/30UE,Homelessness,Contributions to Other Bodies,4730,NAME REDACTED 7 nights 04/07/2022-11/07/2022,05/08/2022,0000480699,315.00,Revenue,CLAREMONT HOTEL,0
South Ribble Borough Council,http://statistics.data.gov.uk/id/local-authority/30UE,Homelessness,Temporary Accommodation,5311,NAME REDACTED and child 7 nights 04/07/2022-11/07/2022,05/08/2022,0000480699,525.00,Revenue,CLAREMONT HOTEL,0
South Ribble Borough Council,http://statistics.data.gov.uk/id/local-authority/30UE,Homelessness,Temporary Accommodation,5311,NAME REDACTED 10 nights 01/07/2022-11/07/2022,05/08/2022,0000480699,450.00,Revenue,CLAREMONT HOTEL,0
South Ribble Borough Council,http://statistics.data.gov.uk/id/local-authority/30UE,Homelessness,Temporary Accommodation,5311,NAME REDACTED 6 nights 05/07/2022-11/07/2022,05/08/2022,0000480699,270.00,Revenue,CLAREMONT HOTEL,0
South Ribble Borough Council,http://statistics.data.gov.uk/id/local-authority/30UE,Homelessness,Temporary Accommodation,5311,NAME REDACTED 01/08/2022-08/08/2022 7 nights ,12/08/2022,0000480850,696.50,Revenue,CLAREMONT HOTEL,0
South Ribble Borough Council,http://statistics.data.gov.uk/id/local-authority/30UE,Homelessness,Contributions to Other Bodies,4730,NAME REDACTED 01/08/2022-08/08/2022 7 nights,12/08/2022,0000480850,315.00,Revenue,CLAREMONT HOTEL,0
South Ribble Borough Council,http://statistics.data.gov.uk/id/local-authority/30UE,Homelessness,Temporary Accommodation,5311,NAME REDACTED 01/08/2022-08/08/2022 7 nights ,12/08/2022,0000480850,315.00,Revenue,CLAREMONT HOTEL,0
South Ribble Borough Council,http://statistics.data.gov.uk/id/local-authority/30UE,Homelessness,Temporary Accommodation,5311,NAME REDACTED 01/08/2022-08/08/2022 7 nights ,12/08/2022,0000480850,525.00,Revenue,CLAREMONT HOTEL,0
South Ribble Borough Council,http://statistics.data.gov.uk/id/local-authority/30UE,Homelessness,Temporary Accommodation,5311,NAME REDACTED 01/08/2022-08/08/2022 7 nights ,12/08/2022,0000480850,315.00,Revenue,CLAREMONT HOTEL,0
South Ribble Borough Council,http://statistics.data.gov.uk/id/local-authority/30UE,Homelessness,Temporary Accommodation,5311,NAME REDACTED 01/08/2022-08/08/2022 7 nights ,12/08/2022,0000480850,696.50,Revenue,CLAREMONT HOTEL,0
South Ribble Borough Council,http://statistics.data.gov.uk/id/local-authority/30UE,Capital,Cap Contract Payment,C230,Bent lane remediation works,19/08/2022,0000481023,"3,190.00",Revenue,CLIVE HURT (PLANT HIRE) LTD,0
South Ribble Borough Council,http://statistics.data.gov.uk/id/local-authority/30UE,Capital,Cap Contract Payment,C230,Bent lane remediation works,19/08/2022,0000481031,"2,392.50",Revenue,CLIVE HURT (PLANT HIRE) LTD,0
South Ribble Borough Council,http://statistics.data.gov.uk/id/local-authority/30UE,Capital,Cap Contract Payment,C230,Bent lane remediation works,19/08/2022,0000481032,"9,018.10",Revenue,CLIVE HURT (PLANT HIRE) LTD,0
South Ribble Borough Council,http://statistics.data.gov.uk/id/local-authority/30UE,Capital,Cap Contract Payment,C230,Bent lane remediation works,19/08/2022,0000481033,"5,387.13",Revenue,CLIVE HURT (PLANT HIRE) LTD,0
South Ribble Borough Council,http://statistics.data.gov.uk/id/local-authority/30UE,Capital,Cap Contract Payment,C230,Provision of BREEAM Services (Stages 1-3) for the Leyland Town Deal Development,26/08/2022,0000479913,"4,370.00",Revenue,Complete Sustainability Solutions Ltd,0
South Ribble Borough Council,http://statistics.data.gov.uk/id/local-authority/30UE,Capital,Cap Contract Payment,C230,Provision of BREEAM Services (Stages 1-3) for the Leyland Town Deal Development,26/08/2022,0000479950,"1,800.00",Revenue,Complete Sustainability Solutions Ltd,0
South Ribble Borough Council,http://statistics.data.gov.uk/id/local-authority/30UE,Capital,Cap Contract Payment,C230,"Pre Construction Services Agreement (PCS) - Jubilee Gardens Extra Care, West Paddock, PR25 1DH",12/08/2022,0000480763,"139,257.00",Revenue,Conlon Construction Limited,0
South Ribble Borough Council,http://statistics.data.gov.uk/id/local-authority/30UE,Waste Collection,External Contractors Charges,4570,270x grey 240l bins.,12/08/2022,0000480581,"5,562.00",Revenue,Contenur UK Ltd,0
South Ribble Borough Council,http://statistics.data.gov.uk/id/local-authority/30UE,Recycling,External Contractors Charges,4570,270x blue 240l bins. ,12/08/2022,0000480581,"5,805.00",Revenue,Contenur UK Ltd,0
South Ribble Borough Council,http://statistics.data.gov.uk/id/local-authority/30UE,Waste Collection,External Contractors Charges,4570,50 x Grey Wheelie Bins ,12/08/2022,0000480636,"1,030.00",Revenue,Contenur UK Ltd,0
South Ribble Borough Council,http://statistics.data.gov.uk/id/local-authority/30UE,Waste Collection,External Contractors Charges,4570,Delivery,12/08/2022,0000480636,200.00,Revenue,Contenur UK Ltd,0
South Ribble Borough Council,http://statistics.data.gov.uk/id/local-authority/30UE,Recycling,External Contractors Charges,4570,270 x blue 240L bins ,26/08/2022,0000480921,"5,805.00",Revenue,Contenur UK Ltd,0
South Ribble Borough Council,http://statistics.data.gov.uk/id/local-authority/30UE,Waste Collection,External Contractors Charges,4570,270 x grey 240L bins ,26/08/2022,0000480921,"5,562.00",Revenue,Contenur UK Ltd,0
South Ribble Borough Council,http://statistics.data.gov.uk/id/local-authority/30UE,Waste Collection,External Contractors Charges,4570,420 Units (2 Pallets) x Green OT 55 Litre recycling crates @ 5.34,05/08/2022,0000480359,"2,242.80",Revenue,Coral Mouldings (Product) Ltd,0
South Ribble Borough Council,http://statistics.data.gov.uk/id/local-authority/30UE,Waste Collection,External Contractors Charges,4570,1050 units (5 pallets) x Green OT 55 litre recycling crates printed to council spec @ 5.34,26/08/2022,0000481034,"5,607.00",Revenue,Coral Mouldings (Product) Ltd,0
South Ribble Borough Council,http://statistics.data.gov.uk/id/local-authority/30UE,Central Support Services,Miscellaneous Expenses,4851,"Serve notice and evict under Common Law 
to Travellers at Open land on Middleforth Green, Leyland Road/Marshall�s Brow, Preston PR1 9QB",05/08/2022,0000480718,"2,225.00",Revenue,Court Enforcement Specialists Ltd,0
South Ribble Borough Council,http://statistics.data.gov.uk/id/local-authority/30UE,Central Support Services,Miscellaneous Expenses,4851,"Serve and Evict Travellers at Todd Lane South & Bridge Road, Lostock Hall South Ribble, Preston PR5 5XJ",26/08/2022,0000481107,"2,000.00",Revenue,Court Enforcement Specialists Ltd,0
South Ribble Borough Council,http://statistics.data.gov.uk/id/local-authority/30UE,Central Support Services,Miscellaneous Expenses,4851,"Serve and evict travellers at Withy Grove Bamber bridge, Preston PR5 6YJ",26/08/2022,0000481135,"1,850.00",Revenue,Court Enforcement Specialists Ltd,0
South Ribble Borough Council,http://statistics.data.gov.uk/id/local-authority/30UE,Central Support Services,Operational Equip & Tools,4010,Apollo 600 + Portable Pat Tester  INO8013 Patguard 3 INO8044 Pat test software Printer Label Roll INO8043 130 x labels,19/08/2022,0000481015,463.50,Revenue,CPC Re: COMBINED PRECISION COMPONENTS PLC,0
South Ribble Borough Council,http://statistics.data.gov.uk/id/local-authority/30UE,Waste Collection,External Contractors Charges,4570,100x 240ltr grey bins,05/08/2022,0000480407,"2,500.00",Revenue,CRAEMER UK LTD,0
South Ribble Borough Council,http://statistics.data.gov.uk/id/local-authority/30UE,Waste Collection,External Contractors Charges,4570,Delivery,05/08/2022,0000480407,200.00,Revenue,CRAEMER UK LTD,0
South Ribble Borough Council,http://statistics.data.gov.uk/id/local-authority/30UE,Local Tax Collection,Postage General,4291,POSTAGE FOR APRIL TO SEPT 2022,05/08/2022,0000480658,330.87,Revenue,CRITIQOM,0
South Ribble Borough Council,http://statistics.data.gov.uk/id/local-authority/30UE,Local Tax Collection,Postage General,4291,POSTAGE FOR APRIL TO SEPT 2022,12/08/2022,0000480893,601.02,Revenue,CRITIQOM,0
South Ribble Borough Council,http://statistics.data.gov.uk/id/local-authority/30UE,Capital,Cap Contract Payment,C230,Ground Investigation Report Update - West Paddock (Extra Care Scheme),26/08/2022,0000480675,"1,000.00",Revenue,Crossfield Consulting Ltd,0
South Ribble Borough Council,http://statistics.data.gov.uk/id/local-authority/30UE,Homelessness,Temporary Accommodation,5311,NAME REDACTED Anvil placement August 2022,05/08/2022,0000480616,420.00,Revenue,David Iddon & Corrina Kellett,0
South Ribble Borough Council,http://statistics.data.gov.uk/id/local-authority/30UE,Homelessness,Temporary Accommodation,5311,NAME REDACTED Anvil guest house September 2022,26/08/2022,0000481151,420.00,Revenue,David Iddon & Corrina Kellett,0
South Ribble Borough Council,http://statistics.data.gov.uk/id/local-authority/30UE,Central Support Services,Materials General,4040,Cable loom VK20 NVV JFC 18772,26/08/2022,0000480923,284.53,Revenue,DENNIS EAGLE LTD,0
South Ribble Borough Council,http://statistics.data.gov.uk/id/local-authority/30UE,Central Support Services,Materials General,4040,1 LH bracket 1 RH bracket VA19 KOX JFC18813,26/08/2022,0000480925,783.33,Revenue,DENNIS EAGLE LTD,0
South Ribble Borough Council,http://statistics.data.gov.uk/id/local-authority/30UE,Central Support Services,Reactive Repair & Maintenance,2020,Additional charges for extra work carried out at MSD 3 days on EICR work agreed with Jason and to cover the invoice FM 2921,05/08/2022,0000480620,780.00,Revenue,DES Electrical Services Ltd,0
South Ribble Borough Council,http://statistics.data.gov.uk/id/local-authority/30UE,Central Support Services,Reactive Repair & Maintenance,2020,"Sounder Installation following call out, Scope of Works Quotation to replace the redundant fire alarm sounders in the canteen and the meeting",19/08/2022,0000480926,665.00,Revenue,DES Electrical Services Ltd,0
South Ribble Borough Council,http://statistics.data.gov.uk/id/local-authority/30UE,Recreation & Sport,Electricity,2303,28/9/21 to 23/6/22,19/08/2022,0000480273,300.32,Revenue,E.ON,0
South Ribble Borough Council,http://statistics.data.gov.uk/id/local-authority/30UE,Central Support Services,Telecomms - Mobile,4260,01 july 2022,12/08/2022,0000480171,"4,675.06",Revenue,EE Ltd,0
South Ribble Borough Council,http://statistics.data.gov.uk/id/local-authority/30UE,Central Support Services,Telecomms - Mobile,4260,May 2022,12/08/2022,0000480860,"4,743.49",Revenue,EE Ltd,0
South Ribble Borough Council,http://statistics.data.gov.uk/id/local-authority/30UE,Central Support Services,Telecomms - Mobile,4260,April 2022,12/08/2022,0000480861,"4,623.66",Revenue,EE Ltd,0
South Ribble Borough Council,http://statistics.data.gov.uk/id/local-authority/30UE,Central Support Services,Telecomms - Mobile,4260,Non Vatable charges,12/08/2022,0000480861,8.01,Revenue,EE Ltd,0
South Ribble Borough Council,http://statistics.data.gov.uk/id/local-authority/30UE,Central Support Services,Telecomms - Mobile,4260,Aug 2022,12/08/2022,0000480862,"4,724.98",Revenue,EE Ltd,0
South Ribble Borough Council,http://statistics.data.gov.uk/id/local-authority/30UE,Central Support Services,Telecomms - Mobile,4260,June 2022,12/08/2022,0000480863,"4,672.80",Revenue,EE Ltd,0
South Ribble Borough Council,http://statistics.data.gov.uk/id/local-authority/30UE,Central Support Services,Telecomms - Mobile,4260,March 2022,12/08/2022,0000480864,"4,586.61",Revenue,EE Ltd,0
South Ribble Borough Council,http://statistics.data.gov.uk/id/local-authority/30UE,Central Support Services,Telecomms - Mobile,4260,not vatable charges,12/08/2022,0000480864,8.00,Revenue,EE Ltd,0
South Ribble Borough Council,http://statistics.data.gov.uk/id/local-authority/30UE,Capital,Cap Contract Payment,C230,"BREEAM AP consultancy services RIBA Stage 3-6 - Jubilee Gardens Extra Care Project, West Paddock in Leyland",26/08/2022,0000480900,950.00,Revenue,Energy Council Ltd is a Trading Name of EC Energy,0
South Ribble Borough Council,http://statistics.data.gov.uk/id/local-authority/30UE,Capital,Cap Contract Payment,C230,Leyland Town Deal - Ecology BREAAM Requirements,26/08/2022,0000480851,350.00,Revenue,Envirotech NW Ltd,0
South Ribble Borough Council,http://statistics.data.gov.uk/id/local-authority/30UE,Central Support Services,Materials General,4040,12 x bottom blades bin-1265 84 x screws bin-1114 172600/4040,12/08/2022,0000480672,256.38,Revenue,F R SHARROCK LTD,0
South Ribble Borough Council,http://statistics.data.gov.uk/id/local-authority/30UE,Central Support Services,Materials General,4040,Cutting cylinder pump PO16 HMX JFC 18791,26/08/2022,0000480928,436.80,Revenue,F R SHARROCK LTD,0
South Ribble Borough Council,http://statistics.data.gov.uk/id/local-authority/30UE,Central Support Services,Materials General,4040,1 lift arm PO16 HMX JFC18791,26/08/2022,0000481002,519.43,Revenue,F R SHARROCK LTD,0
South Ribble Borough Council,http://statistics.data.gov.uk/id/local-authority/30UE,Democratic Represent and  Mgnt,Operational Equip & Tools,4010,PLEASE SUPPLY 1 PAST MAYOR`S BADGE AND 1 PAST MAYORESS/CONSORT BADGE AS DISCUSSED ,19/08/2022,0000480930,"2,912.54",Revenue,FATTORINI SALES & PRODUCTION,0
South Ribble Borough Council,http://statistics.data.gov.uk/id/local-authority/30UE,Short Term Creditors,Amount Paid,0030,Retention Monies January - May 2022 plus June clinical,26/08/2022,0000481035,"36,711.89",Revenue,FCC Environment Services (UK) Ltd,0
South Ribble Borough Council,http://statistics.data.gov.uk/id/local-authority/30UE,Waste Collection,External Contractors Charges,4570,End of Contract Bin Stock Count Valuation,26/08/2022,0000481036,"13,516.33",Revenue,FCC Environment Services (UK) Ltd,0
South Ribble Borough Council,http://statistics.data.gov.uk/id/local-authority/30UE,Capital,Cap Contract Payment,C230,Solar Powered Strada EV03,19/08/2022,0000480205,"1,900.00",Revenue,Flowbird Smart City UK Ltd,0
South Ribble Borough Council,http://statistics.data.gov.uk/id/local-authority/30UE,Central Support Services,Materials General,4040,1 fuel tank BJ66 MKL JFC18788,12/08/2022,0000480904,398.65,Revenue,Fred Coupe,0
South Ribble Borough Council,http://statistics.data.gov.uk/id/local-authority/30UE,Economic Development,Professional Fees,4510,Music in the Park - Digital Partner Disp,12/08/2022,0000478820,495.00,Revenue,Global Media Group Services Ltd,0
South Ribble Borough Council,http://statistics.data.gov.uk/id/local-authority/30UE,Economic Development,Professional Fees,4510,D6 digital screen at Preston Station for 12 weeks and back of bus advertising on 10 busses for 4 weeks,12/08/2022,0000480891,"3,490.00",Revenue,Global Media Group Services Ltd,0
South Ribble Borough Council,http://statistics.data.gov.uk/id/local-authority/30UE,Capital,Capital Grant,C570,DFG WORK FOR ADAPTATION FOR LEVEL ACCESS BATHROOM AT ADDRESS REDACTED AS PER SRBC PLANS,26/08/2022,0000480703,"4,606.31",Revenue,GOS Heating Ltd,0
South Ribble Borough Council,http://statistics.data.gov.uk/id/local-authority/30UE,Central Support Services,Reactive Repair & Maintenance,2020,For the re-installation with the additional work and further hire of the scaffolding. 8 weeks additional hire of the scaffolding,12/08/2022,0000480887,"1,584.80",Revenue,GOS Heating Ltd,0
South Ribble Borough Council,http://statistics.data.gov.uk/id/local-authority/30UE,Capital,Capital Grant,C570,DFG WORK FOR ADAPTATION FOR LEVEL ACCESS BATHROOM  AT ADDRESS REDACTEED,26/08/2022,0000480947,"4,934.60",Revenue,GOS Heating Ltd,0
South Ribble Borough Council,http://statistics.data.gov.uk/id/local-authority/30UE,Capital,Cap Contract Payment,C230,Consultancy Services - McKenzie Arms,26/08/2022,0000480551,"1,793.83",Revenue,Gosling Consulting Limited,0
South Ribble Borough Council,http://statistics.data.gov.uk/id/local-authority/30UE,Capital,Cap Contract Payment,C230,Leyland Town Deal - Additional Document Management Services ,26/08/2022,0000481167,"1,575.00",Revenue,Gosling Consulting Limited,0
South Ribble Borough Council,http://statistics.data.gov.uk/id/local-authority/30UE,Democratic Represent and  Mgnt,Members Training,1406,CLLR NAME REDACTED TO ATTEND NATIONAL HOMELESSNESS EVERNT ON 29 NOVEMBER 2022,19/08/2022,0000481001,319.20,Revenue,Government Events,0
South Ribble Borough Council,http://statistics.data.gov.uk/id/local-authority/30UE,Corporate Management,External Audit Fees,4512,2020-21 External audit. Agreed additional audit fees now approved by PSAA,12/08/2022,0000480939,"36,970.00",Revenue,Grant Thornton UK LLP,0
South Ribble Borough Council,http://statistics.data.gov.uk/id/local-authority/30UE,Capital,Cap Contract Payment,C230,Description: wooden sculptures for King George V playing fields as per NAME REDACTED,05/08/2022,0000480554,"6,768.00",Revenue,Greenspace Designs Ltd,0
South Ribble Borough Council,http://statistics.data.gov.uk/id/local-authority/30UE,Open Spaces,GM Refurbishment,4657,Repair of the carpet under the Kompan roundabout in the teen area and the sanding of the Toddler/Junior and Teen area on Kingsfold Drive.,12/08/2022,0000480700,"1,032.00",Revenue,GROUNDWORK LEISURE SERVICES LTD,0
South Ribble Borough Council,http://statistics.data.gov.uk/id/local-authority/30UE,Community Development,External Catering Charges,4575,Lunches for week 1 of HAF - 640 lunches,12/08/2022,0000480933,"3,200.00",Revenue,Halls Bakery Limited,0
South Ribble Borough Council,http://statistics.data.gov.uk/id/local-authority/30UE,Community Development,Core Fund,4861,Support for security and general work around the bowling green area at Higher Walton,19/08/2022,0000480934,500.00,Revenue,HIGHER WALTON BOWLING CLUB,0
South Ribble Borough Council,http://statistics.data.gov.uk/id/local-authority/30UE,Capital,Cap Contract Payment,C230,"Work -Manufacture, delivery, installation of signage as per NAME REDACTED",12/08/2022,0000480577,"2,823.00",Revenue,Hornbeck Ltd T/A Landmark,0
South Ribble Borough Council,http://statistics.data.gov.uk/id/local-authority/30UE,Capital,Cap Contract Payment,C230,Job  Replacement panels as per NAME REDACTED request,12/08/2022,0000480783,"1,163.80",Revenue,Hornbeck Ltd T/A Landmark,0
South Ribble Borough Council,http://statistics.data.gov.uk/id/local-authority/30UE,Capital,Capital Grant,C570,SUPPLY AND INSTALL DOOR OPENING SYATEM AS PER SPECIFICATION GIVEN BY NAME REDACTED,26/08/2022,0000481004,"4,678.52",Revenue,Hugh Steeper Limited,0
South Ribble Borough Council,http://statistics.data.gov.uk/id/local-authority/30UE,Capital,Cap Contract Payment,C230,Historical fly through of Hurst Grange Coach House,12/08/2022,0000480888,"1,000.00",Revenue,Ivan Wilson Architect,0
South Ribble Borough Council,http://statistics.data.gov.uk/id/local-authority/30UE,Open Spaces,External Contractors Charges,4570,Safety inspection and report,12/08/2022,0000480779,350.00,Revenue,JCB Price & Son Ltd,0
South Ribble Borough Council,http://statistics.data.gov.uk/id/local-authority/30UE,Capital,Cap Contract Payment,C230,Costs for work on the refurbishment of Worden Hall Central Buildings,12/08/2022,0000480470,"182,350.90",Revenue,John Turner Construction Group Ltd,0
South Ribble Borough Council,http://statistics.data.gov.uk/id/local-authority/30UE,Community Development,Core Fund,4861,Install 4 pads 1x1x0.3m deep C30 concrete as discussed on site this morning. Cat scan area and lift manhole covers to investigate local drainage,19/08/2022,0000480640,"2,480.00",Revenue,John Wade Groundworks Ltd t/a Wade Group,0
South Ribble Borough Council,http://statistics.data.gov.uk/id/local-authority/30UE,Capital,Cap Contract Payment,C230,Description- BB hob inn site regeneration as per NAME REDACTED request,12/08/2022,0000480656,"35,570.47",Revenue,John Wade Groundworks Ltd t/a Wade Group,0
South Ribble Borough Council,http://statistics.data.gov.uk/id/local-authority/30UE,Capital,Cap Contract Payment,C230,Provision of MEP Consultant Services for the delivery of the Worden Hall refurbishment as per tender as per NAME REDACTED request,26/08/2022,0000480604,"4,550.00",Revenue,JRB Environmental Design Limited,0
South Ribble Borough Council,http://statistics.data.gov.uk/id/local-authority/30UE,Open Spaces,Plants Trees & Shrubs,4046,1 x Crown design instaplant carpet bed For delivery week 22/2022 Please Deliver by 2pm. ,05/08/2022,0000480120,"2,760.00",Revenue,KERNOCK PARK PLANTS,0
South Ribble Borough Council,http://statistics.data.gov.uk/id/local-authority/30UE,Community Development,Professional Fees,4510,HAF activity provider for summer camps. Week 1 and 2 - 2-12 August,19/08/2022,0000481005,"2,240.00",Revenue,KEY UNLOCKING FUTURES LTD,0
South Ribble Borough Council,http://statistics.data.gov.uk/id/local-authority/30UE,Community Development,Professional Fees,4510,HAF summer activity camps 25 July to 5 August,19/08/2022,0000480948,"4,500.00",Revenue,Kick On Football Coaching,0
South Ribble Borough Council,http://statistics.data.gov.uk/id/local-authority/30UE,Regulatory Services,Poisons & Baits,4041,1 x Quantum Ant Gel (4 x 30g) MAXQUAN30G,12/08/2022,0000479447,139.00,Revenue,KILLGERM CHEMICALS LTD,0
South Ribble Borough Council,http://statistics.data.gov.uk/id/local-authority/30UE,Regulatory Services,Poisons & Baits,4041,1x AF Ant Pinpoint Bait Stations (box of 30) AFPIN30K,12/08/2022,0000479447,14.03,Revenue,KILLGERM CHEMICALS LTD,0
South Ribble Borough Council,http://statistics.data.gov.uk/id/local-authority/30UE,Regulatory Services,Poisons & Baits,4041,3 x PA2CART50 Crosman Cartridges 12g (Non- Threaded),12/08/2022,0000479447,88.86,Revenue,KILLGERM CHEMICALS LTD,0
South Ribble Borough Council,http://statistics.data.gov.uk/id/local-authority/30UE,Regulatory Services,Poisons & Baits,4041,4 x ATOM Bait Box (Box of 8) AFATOMBLK,12/08/2022,0000479447,80.00,Revenue,KILLGERM CHEMICALS LTD,0
South Ribble Borough Council,http://statistics.data.gov.uk/id/local-authority/30UE,Capital,Cap Contract Payment,C230,"Design and build of a new playground at the Holme Playground, Bamber Bridge, PR5 9BD.",26/08/2022,0000480490,"219,375.00",Revenue,KOMPAN LTD,0
South Ribble Borough Council,http://statistics.data.gov.uk/id/local-authority/30UE,Open Spaces,GM Refurbishment,4657,Seesaw and hammock parts as per quote ref. SQ272249,12/08/2022,0000480766,"2,027.65",Revenue,KOMPAN LTD,0
South Ribble Borough Council,http://statistics.data.gov.uk/id/local-authority/30UE,Open Spaces,GM Refurbishment,4657,Seesaw and hammock parts as per quote ref. SQ272249,12/08/2022,0000480766,506.91,Revenue,KOMPAN LTD,0
South Ribble Borough Council,http://statistics.data.gov.uk/id/local-authority/30UE,Open Spaces,GM Refurbishment,4657,20x mounts as per quote ref. SQ270708-1.,12/08/2022,0000480767,325.00,Revenue,KOMPAN LTD,0
South Ribble Borough Council,http://statistics.data.gov.uk/id/local-authority/30UE,Development Control,Professional Fees,4510,The provision of specialist archaeological advice 2021-24 - Year 2 2022-23,12/08/2022,0000480962,"2,014.00",Revenue,LANCS COUNTY COUNCIL,0
South Ribble Borough Council,http://statistics.data.gov.uk/id/local-authority/30UE,Capital,Capital Grant,C570,DFG TO SUPPLY AND INSTALL HOIST AT ADDRESS REDACTED AS PER QUOTE SUPPLIED ,26/08/2022,0000481006,"2,432.08",Revenue,LANCS COUNTY COUNCIL,0
South Ribble Borough Council,http://statistics.data.gov.uk/id/local-authority/30UE,Capital,Capital Grant,C570,SUPPLY AND INSTALL HOIST EQUIPMENT AT ADDRESS REDACTED AS PER QUOTE SUPPLIED ,26/08/2022,0000481007,"1,255.58",Revenue,LANCS COUNTY COUNCIL,0
South Ribble Borough Council,http://statistics.data.gov.uk/id/local-authority/30UE,Central Support Services,Materials General,4040,Full Filter kit Oil YA19 NGN JFC 18764,12/08/2022,0000480575,522.93,Revenue,LANCS DAF,0
South Ribble Borough Council,http://statistics.data.gov.uk/id/local-authority/30UE,Central Support Services,Materials General,4040,EGR pipe and gasket. JFC18765  172600 (PL),12/08/2022,0000480657,275.35,Revenue,LANCS DAF,0
South Ribble Borough Council,http://statistics.data.gov.uk/id/local-authority/30UE,Central Support Services,Materials General,4040,Service Kit YD19 AUT JFC 18798,12/08/2022,0000480809,354.91,Revenue,LANCS DAF,0
South Ribble Borough Council,http://statistics.data.gov.uk/id/local-authority/30UE,Capital,Cap Contract Payment,C230,PROVISION OF LANDSCAPE ARCHITECT AND PUBLIC REALM DESIGN SERVICES TO RIBA STAGE 3 - LEYLAND TOWN DEAL PROJECT,26/08/2022,0000479316,"7,755.00",Revenue,Lanpro Services Ltd,0
South Ribble Borough Council,http://statistics.data.gov.uk/id/local-authority/30UE,Local Tax Collection,Consultancy Fees,4541,EMPTY HOME REVIEW JULY 2022,26/08/2022,0000481059,"3,407.77",Revenue,LIBERATA UK LTD,0
South Ribble Borough Council,http://statistics.data.gov.uk/id/local-authority/30UE,Local Tax Collection,Consultancy Fees,4541,EMPTY HOME REVIEW JUNE 2022,26/08/2022,0000481060,"12,888.36",Revenue,LIBERATA UK LTD,0
South Ribble Borough Council,http://statistics.data.gov.uk/id/local-authority/30UE,Central Support Services,Operational Equip & Tools,4010, PADLOCKS  - SQUIRE 660 TO PASS KEY 10,12/08/2022,0000480574,273.24,Revenue,M A C BUILDING PRODUCTS LTD,0
South Ribble Borough Council,http://statistics.data.gov.uk/id/local-authority/30UE,Central Support Services,Other Fees,4520,CSE ASSESSMENT FEE AND ASSESSOR EXPENSES,19/08/2022,0000480941,920.00,Revenue,M ASSESSMENT SERVICES,0
South Ribble Borough Council,http://statistics.data.gov.uk/id/local-authority/30UE,Parking Services,Materials General,4040,x2 CEDAR AVENUE,12/08/2022,0000480846,94.20,Revenue,Main Street Signs Ltd,0
South Ribble Borough Council,http://statistics.data.gov.uk/id/local-authority/30UE,Parking Services,Materials General,4040,x2 MANOR LANE,12/08/2022,0000480846,89.80,Revenue,Main Street Signs Ltd,0
South Ribble Borough Council,http://statistics.data.gov.uk/id/local-authority/30UE,Parking Services,Materials General,4040,X3 KENT AVENUE,12/08/2022,0000480846,138.00,Revenue,Main Street Signs Ltd,0
South Ribble Borough Council,http://statistics.data.gov.uk/id/local-authority/30UE,Parking Services,Materials General,4040,X2 LAWRENCE AVENUE,12/08/2022,0000480846,100.80,Revenue,Main Street Signs Ltd,0
South Ribble Borough Council,http://statistics.data.gov.uk/id/local-authority/30UE,Parking Services,Materials General,4040,X1 WELLINGTON PLACE,12/08/2022,0000480846,51.50,Revenue,Main Street Signs Ltd,0
South Ribble Borough Council,http://statistics.data.gov.uk/id/local-authority/30UE,Parking Services,Materials General,4040,X2 BIRCHWOOD AVENUE T,12/08/2022,0000480846,109.00,Revenue,Main Street Signs Ltd,0
South Ribble Borough Council,http://statistics.data.gov.uk/id/local-authority/30UE,Parking Services,Materials General,4040,X1 BOW LANE,12/08/2022,0000480846,42.70,Revenue,Main Street Signs Ltd,0
South Ribble Borough Council,http://statistics.data.gov.uk/id/local-authority/30UE,Parking Services,Materials General,4040,X2 CHATSWORTH ROAD,12/08/2022,0000480846,100.80,Revenue,Main Street Signs Ltd,0
South Ribble Borough Council,http://statistics.data.gov.uk/id/local-authority/30UE,Parking Services,Materials General,4040,X2 CROMWELL ROAD T,12/08/2022,0000480846,202.40,Revenue,Main Street Signs Ltd,0
South Ribble Borough Council,http://statistics.data.gov.uk/id/local-authority/30UE,Open Spaces,External Contractors Charges,4570,Supply and apply weed and feed to football pitches and grass areas within South Ribble Borough,12/08/2022,0000480845,"4,386.00",Revenue,Maple Contracting Ltd T/A Complete Weed Control,0
South Ribble Borough Council,http://statistics.data.gov.uk/id/local-authority/30UE,Central Support Services,Legal,4821,PROFESSIONAL SERVICES IN RESPECT OF THE PICKERING FARM INQUIRY,12/08/2022,0000480744,"3,262.50",Revenue,MR IAN PONTER,0
South Ribble Borough Council,http://statistics.data.gov.uk/id/local-authority/30UE,Regulatory Services,Legal,4821,Barrister fees for Penwortham residential park,12/08/2022,0000480434,"2,250.00",Revenue,Mr Leo Charalambides,0
South Ribble Borough Council,http://statistics.data.gov.uk/id/local-authority/30UE,Central Support Services,Miscellaneous Expenses,4851,Public Notice in LEP regarding proposed easement to Electricity North West Ltd over open space near Margaret Rd Penwortham,19/08/2022,0000480966,907.20,Revenue,National World Publishing Limited,0
South Ribble Borough Council,http://statistics.data.gov.uk/id/local-authority/30UE,Community Development,Miscellaneous Expenses,4851,Management of event Longton Live 2022,12/08/2022,0000480843,"1,500.00",Revenue,Nigel Stewart,0
South Ribble Borough Council,http://statistics.data.gov.uk/id/local-authority/30UE,Recreation & Sport,Furniture,4017,1. 4 x Bolero PE Centre Folding Table 6ft with Six Folding Chairs ,19/08/2022,0000480369,999.96,Revenue,NISBETS,0
South Ribble Borough Council,http://statistics.data.gov.uk/id/local-authority/30UE,Recreation & Sport,Furniture,4017,2. 2 x Bolero Rectangular Centre Folding Table 6ft White,19/08/2022,0000480369,139.98,Revenue,NISBETS,0
South Ribble Borough Council,http://statistics.data.gov.uk/id/local-authority/30UE,Central Support Services,Reactive Repair & Maintenance,2020,Carry out additional electrical work and supply new armoured to adblue tank with all connections and glands ,12/08/2022,0000480654,"2,545.00",Revenue,NIXON PUMPS,0
South Ribble Borough Council,http://statistics.data.gov.uk/id/local-authority/30UE,Central Support Services,External Contractors Charges,4570,"NAME REDACTEDt 8Ton capacity ram off lift beam- serviced, tested and certified.",12/08/2022,0000480503,339.00,Revenue,NORTHERN JACK SPECIALISTS,0
South Ribble Borough Council,http://statistics.data.gov.uk/id/local-authority/30UE,Central Support Services,External Contractors Charges,4570,Carriage charge,12/08/2022,0000480503,30.00,Revenue,NORTHERN JACK SPECIALISTS,0
South Ribble Borough Council,http://statistics.data.gov.uk/id/local-authority/30UE,Central Support Services,Materials General,4040, CHANNEL BRUSH - 2.8 mm POLY & 3.3mm WIRE 5 row 700/1000mm - MIDI SWEEPER 78399/2,05/08/2022,0000480413,827.47,Revenue,NORTHERN MUNICIPAL SPARES LTD,0
South Ribble Borough Council,http://statistics.data.gov.uk/id/local-authority/30UE,Economic Development,Miscellaneous Expenses,4851,4+2 Main Events Trailer 4 Ladies & 2 Men`s cubicles & 2 men`s urinals 2nd-3rd June 2022 EXTRA TRAILER HIRE,12/08/2022,0000479359,600.00,Revenue,Northwest Portable Toilet Company Ltd,0
South Ribble Borough Council,http://statistics.data.gov.uk/id/local-authority/30UE,Parking Services,Parking Attendants,4514,Variable Fee Car Park Enforcement July 2022- Variable Recharge Items,12/08/2022,0000480908,"1,664.10",Revenue,NSL LTD,0
South Ribble Borough Council,http://statistics.data.gov.uk/id/local-authority/30UE,Parking Services,Cash Collection Charges Car Parks,4855,Fixed Fee Car Park Enforcement July 2022- Fixed Recharge Items,12/08/2022,0000480908,749.58,Revenue,NSL LTD,0
South Ribble Borough Council,http://statistics.data.gov.uk/id/local-authority/30UE,Capital,Cap Contract Payment,C230,"Detailed estimate and specification for alterations to Openreach`s apparatus at Quin St, Leyland",12/08/2022,0000480126,768.40,Revenue,OPENREACH (BT GROUP BUSINESS),0
South Ribble Borough Council,http://statistics.data.gov.uk/id/local-authority/30UE,Central Support Services,Occupational Health,1408,"PROVISION OF WELLBEING, TELEPHONE CONSULTATIONS AND COUNSELLING FROM MAY JUNE 2022",12/08/2022,0000479989,130.00,Revenue,People Asset Management,0
South Ribble Borough Council,http://statistics.data.gov.uk/id/local-authority/30UE,Central Support Services,Occupational Health,1408,non vat,12/08/2022,0000479989,120.00,Revenue,People Asset Management,0
South Ribble Borough Council,http://statistics.data.gov.uk/id/local-authority/30UE,Central Support Services,Occupational Health,1408,"PROVISION OF WELLBEING, TELEPHONE CONSULTATIONS AND COUNSELLING FROM MAY JUNE 2022",12/08/2022,0000480388,129.50,Revenue,People Asset Management,0
South Ribble Borough Council,http://statistics.data.gov.uk/id/local-authority/30UE,Central Support Services,Occupational Health,1408,,12/08/2022,0000480388,189.00,Revenue,People Asset Management,0
South Ribble Borough Council,http://statistics.data.gov.uk/id/local-authority/30UE,Central Support Services,Occupational Health,1408,"PROVISION OF WELLBEING, TELEPHONE CONSULTATIONS AND COUNSELLING FROM MAY JUNE 2022",12/08/2022,0000480445,261.00,Revenue,People Asset Management,0
South Ribble Borough Council,http://statistics.data.gov.uk/id/local-authority/30UE,Recycling,Contract Printing,4127,Provision & Posting of Garden Waste Permits June - Dec 2022,12/08/2022,0000480906,528.28,Revenue,Permiserv Ltd,0
South Ribble Borough Council,http://statistics.data.gov.uk/id/local-authority/30UE,Central Support Services,Short Course,1402,NAME REDACTED TO ATTEND CIR - BUSINESS CONTINUITY IN THE AGE OF DISRUPTION COURSE ON 25 MAY 2022,12/08/2022,0000480450,495.00,Revenue,Perspective Publishing Limited,0
South Ribble Borough Council,http://statistics.data.gov.uk/id/local-authority/30UE,Central Support Services,Agency Staff,1121,Planning Enforcement consultancy services,12/08/2022,0000480433,"1,368.00",Revenue,Planning Control & PACE Solutions,0
South Ribble Borough Council,http://statistics.data.gov.uk/id/local-authority/30UE,Homelessness,Temporary Accommodation,5311,IP & RM breakfast fund 26/06/2022-26/07/2022,19/08/2022,0000481021,325.65,Revenue,Poachers Hungry Horse Bamber Bridge 6394,0
South Ribble Borough Council,http://statistics.data.gov.uk/id/local-authority/30UE,Recreation & Sport,Improvements to Premises,2023,"Moss Side Community Centre Signage Main wall sign larger, manufacture and installation Sign on the wrought iron style gate ",12/08/2022,0000480508,594.76,Revenue,Poppy Signs Ltd,0
South Ribble Borough Council,http://statistics.data.gov.uk/id/local-authority/30UE,Community Development,Core Fund,4861,"Printing of 6,500 A3 leaflets on carbon neutral silk 150gsm paper folded to A4 as discussed and agreed",05/08/2022,0000480667,492.56,Revenue,Preston City Council,0
South Ribble Borough Council,http://statistics.data.gov.uk/id/local-authority/30UE,Community Development,Publicity & Promotion,4842,Penwortham Live schedules,05/08/2022,0000480669,255.50,Revenue,Preston City Council,0
South Ribble Borough Council,http://statistics.data.gov.uk/id/local-authority/30UE,Elections,Contract Printing,4127,PRINTING OF STAGE 1 CANVASS COMMUNICATIONS AND ENVELOPES (IN LINE WITH A AND B ON ORDER ACKNOWLEDGEMENT 9582),12/08/2022,0000480853,"9,908.85",Revenue,PRINT IMAGE NETWORK LTD,0
South Ribble Borough Council,http://statistics.data.gov.uk/id/local-authority/30UE,Cash and Cash Equivalents,Amount Paid,0030,NAME REDACTED Donation,19/08/2022,0000480712,"1,000.00",Revenue,PROGRESS HOUSING GROUP - REFUGE,0
South Ribble Borough Council,http://statistics.data.gov.uk/id/local-authority/30UE,Surplus or Deficit on Trading,Reactive Repair & Maintenance,2020,REF: REMMODELLING WORKS TO BAMBER BRIDGE KEY SHOP as per OUR REF LRS Q 5021,19/08/2022,0000480975,"2,300.00",Revenue,PSR & Sons Joiners & Building Contractors,0
South Ribble Borough Council,http://statistics.data.gov.uk/id/local-authority/30UE,Surplus or Deficit on Trading,Reactive Repair & Maintenance,2020,LABOUR,19/08/2022,0000480975,220.00,Revenue,PSR & Sons Joiners & Building Contractors,0
South Ribble Borough Council,http://statistics.data.gov.uk/id/local-authority/30UE,Surplus or Deficit on Trading,Reactive Repair & Maintenance,2020,REF: TOWNGATE SOCIAL CLUB - OUR REF LRS Q 4480  9 TH NOVEMBER 2021 asper NAME REDACTED,26/08/2022,0000481102,800.00,Revenue,PSR & Sons Joiners & Building Contractors,0
South Ribble Borough Council,http://statistics.data.gov.uk/id/local-authority/30UE,Surplus or Deficit on Trading,Reactive Repair & Maintenance,2020,LABOUR,26/08/2022,0000481102,95.00,Revenue,PSR & Sons Joiners & Building Contractors,0
South Ribble Borough Council,http://statistics.data.gov.uk/id/local-authority/30UE,Central Support Services,Reactive Repair & Maintenance,2020,REF: REMEDIAL WORKS TO CIVIC CENTRE Put in place any appropriate signage or barriers to prevent any unauthorised person to enter area.,26/08/2022,0000481124,500.00,Revenue,PSR & Sons Joiners & Building Contractors,0
South Ribble Borough Council,http://statistics.data.gov.uk/id/local-authority/30UE,Central Support Services,Reactive Repair & Maintenance,2020,LABOUR,26/08/2022,0000481124,25.00,Revenue,PSR & Sons Joiners & Building Contractors,0
South Ribble Borough Council,http://statistics.data.gov.uk/id/local-authority/30UE,Homelessness,Temporary Accommodation,5311,NAME REDACTED (Room 10) 01/07  01/08 31 nights,12/08/2022,0000480848,"1,550.00",Revenue,Purpleroomz,0
South Ribble Borough Council,http://statistics.data.gov.uk/id/local-authority/30UE,Homelessness,Temporary Accommodation,5311,NAME REDACTED (Room 34) 01/07  01/08 31 nights ,12/08/2022,0000480848,"1,550.00",Revenue,Purpleroomz,0
South Ribble Borough Council,http://statistics.data.gov.uk/id/local-authority/30UE,Homelessness,Temporary Accommodation,5311,NAME REDACTED (Room 39) 01/07  01/08 31 nights,12/08/2022,0000480848,"1,550.00",Revenue,Purpleroomz,0
South Ribble Borough Council,http://statistics.data.gov.uk/id/local-authority/30UE,Homelessness,Temporary Accommodation,5311,NAME REDACTED (Room 21) 01/07  25/07 25 nights ,12/08/2022,0000480848,"1,200.00",Revenue,Purpleroomz,0
South Ribble Borough Council,http://statistics.data.gov.uk/id/local-authority/30UE,Homelessness,Temporary Accommodation,5311,Room 16 family room 01/07  01/08 31 nights.,12/08/2022,0000480848,"2,183.29",Revenue,Purpleroomz,0
South Ribble Borough Council,http://statistics.data.gov.uk/id/local-authority/30UE,Homelessness,Temporary Accommodation,5311,NAME REDACTED 27/07 1 night,12/08/2022,0000480848,50.00,Revenue,Purpleroomz,0
South Ribble Borough Council,http://statistics.data.gov.uk/id/local-authority/30UE,Homelessness,Contributions to Other Bodies,4730,NAME REDACTED 01/07/2022-01/08/2022 31 nights,12/08/2022,0000480848,"1,550.00",Revenue,Purpleroomz,0
South Ribble Borough Council,http://statistics.data.gov.uk/id/local-authority/30UE,Open Spaces,Hiring Expenses,3212,Hire of 2T excavator 30.06.22-13.07.22,05/08/2022,0000480571,635.80,Revenue,Readyplant Limited,0
South Ribble Borough Council,http://statistics.data.gov.uk/id/local-authority/30UE,Open Spaces,GM Refurbishment,4657,3T Excavator 1T Dumper On hire 20.7.22,26/08/2022,0000481039,255.00,Revenue,Readyplant Limited,0
South Ribble Borough Council,http://statistics.data.gov.uk/id/local-authority/30UE,Democratic Represent and  Mgnt,Civic & Remembrance Day,463A,TO TAKE THE MAYOR`S PORTRAIT AND PROVIDE PRINTS AS DISCUSSED,26/08/2022,0000481164,257.00,Revenue,Red Frog Photography (Karen Riches),0
South Ribble Borough Council,http://statistics.data.gov.uk/id/local-authority/30UE,Open Spaces,GM Refurbishment,4657,Over pumping to dipping pond,05/08/2022,0000480529,150.00,Revenue,RED ROSE BUILDING MAINTENANCE,0
South Ribble Borough Council,http://statistics.data.gov.uk/id/local-authority/30UE,Open Spaces,GM Refurbishment,4657,MATERIALS,05/08/2022,0000480529,100.00,Revenue,RED ROSE BUILDING MAINTENANCE,0
South Ribble Borough Council,http://statistics.data.gov.uk/id/local-authority/30UE,Surplus or Deficit on Trading,Reactive Repair & Maintenance,2020,"To jet all the drains in and around 125  Brookfield place. Also, to include then clearance of the external yard areas. ",12/08/2022,0000480649,200.00,Revenue,RED ROSE BUILDING MAINTENANCE,0
South Ribble Borough Council,http://statistics.data.gov.uk/id/local-authority/30UE,Surplus or Deficit on Trading,Reactive Repair & Maintenance,2020,LABOUR,12/08/2022,0000480649,250.00,Revenue,RED ROSE BUILDING MAINTENANCE,0
South Ribble Borough Council,http://statistics.data.gov.uk/id/local-authority/30UE,Surplus or Deficit on Trading,Reactive Repair & Maintenance,2020,ADDRESS REDACTED,12/08/2022,0000480650,200.00,Revenue,RED ROSE BUILDING MAINTENANCE,0
South Ribble Borough Council,http://statistics.data.gov.uk/id/local-authority/30UE,Surplus or Deficit on Trading,Reactive Repair & Maintenance,2020,LABOUR,12/08/2022,0000480650,250.00,Revenue,RED ROSE BUILDING MAINTENANCE,0
South Ribble Borough Council,http://statistics.data.gov.uk/id/local-authority/30UE,Recreation & Sport,Reactive Repair & Maintenance,2020,To attend Penwortham Holme and over board the skylight including covering with anti-vandal paint. As per NAME REDACTED request  ,19/08/2022,0000480979,150.00,Revenue,RED ROSE BUILDING MAINTENANCE,0
South Ribble Borough Council,http://statistics.data.gov.uk/id/local-authority/30UE,Recreation & Sport,Reactive Repair & Maintenance,2020,LABOUR,19/08/2022,0000480979,100.00,Revenue,RED ROSE BUILDING MAINTENANCE,0
South Ribble Borough Council,http://statistics.data.gov.uk/id/local-authority/30UE,Central Support Services,Reactive Repair & Maintenance,2020,"To dig up and re-lay 10 Meters of foul drains @ Moss Side depot. Following the drains sagging below, due to age. Causing blockages ",26/08/2022,0000481129,"2,000.00",Revenue,RED ROSE BUILDING MAINTENANCE,0
South Ribble Borough Council,http://statistics.data.gov.uk/id/local-authority/30UE,Central Support Services,Reactive Repair & Maintenance,2020,MATERIALS,26/08/2022,0000481129,950.00,Revenue,RED ROSE BUILDING MAINTENANCE,0
South Ribble Borough Council,http://statistics.data.gov.uk/id/local-authority/30UE,Community Development,Miscellaneous Expenses,4851,Storage for Holiday Hunger Food,05/08/2022,0000480340,280.00,Revenue,Red Rose Self Storage Limited,0
South Ribble Borough Council,http://statistics.data.gov.uk/id/local-authority/30UE,Central Support Services,External Contractors Charges,4570,1 Hydraulic Ram Repair PJ69 NWG JFC18191,05/08/2022,0000480570,287.00,Revenue,Redgold Hydraulics (Standish) Ltd,0
South Ribble Borough Council,http://statistics.data.gov.uk/id/local-authority/30UE,Homelessness,Contributions to Other Bodies,4730,FOA NAME REDACTED DW ADDRESS REDACTED to finalise the tenancy wef 20.6.2022.,26/08/2022,0000481126,"1,366.81",Revenue,Reeds Rains,0
South Ribble Borough Council,http://statistics.data.gov.uk/id/local-authority/30UE,Central Support Services,Materials General,4040,2 hopper seals PO70 YOG JFC18713,05/08/2022,0000480716,321.46,Revenue,Refuse Vehicle Parts,0
South Ribble Borough Council,http://statistics.data.gov.uk/id/local-authority/30UE,Central Support Services,Materials General,4040,2 x Hydraulic Filter Kit G027,26/08/2022,0000481104,552.54,Revenue,Refuse Vehicle Parts,0
South Ribble Borough Council,http://statistics.data.gov.uk/id/local-authority/30UE,Central Support Services,Materials General,4040,1 PTO Adaptor YA19 NKD JFC18840,26/08/2022,0000481105,371.41,Revenue,Refuse Vehicle Parts,0
South Ribble Borough Council,http://statistics.data.gov.uk/id/local-authority/30UE,Capital,Cap Contract Payment,C230,Project Management Consultancy Support - Leyland Town Deal,26/08/2022,0000480901,"1,950.00",Revenue,RigDou Ltd,0
South Ribble Borough Council,http://statistics.data.gov.uk/id/local-authority/30UE,Service Management & Support,Operational Equip & Tools,4010,Vacuum oil/fluid extractor 18LTR,05/08/2022,0000480522,298.97,Revenue,Roland Barnes Maintenance,0
South Ribble Borough Council,http://statistics.data.gov.uk/id/local-authority/30UE,Capital,Cap Contract Payment,C230,"McKenzie Arms, Bamber Bridge (Housing Development)",26/08/2022,0000480837,"131,699.75",Revenue,RP Tyson Construction Ltd,0
South Ribble Borough Council,http://statistics.data.gov.uk/id/local-authority/30UE,Central Support Services,Materials General,4040,1000 litres of Premium Hi-Foaming TFR,12/08/2022,0000480645,"1,020.43",Revenue,Saanro International Ltd,0
South Ribble Borough Council,http://statistics.data.gov.uk/id/local-authority/30UE,Short Term Debtors,Amount Paid,0030,To supply continued Commercial Estates support for the Test Track mixed use development as per NAME REDACTED for 2 years From April 2022,12/08/2022,0000480664,"2,174.17",Revenue,Sanderson Weatherall LLP,0
South Ribble Borough Council,http://statistics.data.gov.uk/id/local-authority/30UE,Short Term Debtors,Amount Paid,0030,,12/08/2022,0000480664,3.00,Revenue,Sanderson Weatherall LLP,0
South Ribble Borough Council,http://statistics.data.gov.uk/id/local-authority/30UE,Capital,Cap Contract Payment,C230,RIBA 4 - Technical Design (2nd stage tender negotiations and contract award) - Jubilee Gardens Extra Care Project,26/08/2022,0000480786,"3,921.00",Revenue,SDA Consulting LLP,0
South Ribble Borough Council,http://statistics.data.gov.uk/id/local-authority/30UE,Capital,Cap Contract Payment,C230,RIBA 4 - Technical Design stage (2nd stage tender negotiations and contract award) � Service Manager Role for PCSA,26/08/2022,0000480787,"4,171.00",Revenue,SDA Consulting LLP,0
South Ribble Borough Council,http://statistics.data.gov.uk/id/local-authority/30UE,Capital,Cap Contract Payment,C230,RIBA 4 - Technical Design (2nd stage tender negotiations and contract award) - Jubilee Gardens Extra Care Project,26/08/2022,0000480793,"3,922.00",Revenue,SDA Consulting LLP,0
South Ribble Borough Council,http://statistics.data.gov.uk/id/local-authority/30UE,Capital,Cap Contract Payment,C230,RIBA 4 - Technical Design (2nd stage tender negotiations and contract award) - Jubilee Gardens Extra Care Project,26/08/2022,0000480794,"3,921.00",Revenue,SDA Consulting LLP,0
South Ribble Borough Council,http://statistics.data.gov.uk/id/local-authority/30UE,Democratic Represent and  Mgnt,Corp Subs to Professional Bodies,4720,ANNUAL MEMBERSHIP SUBSCRIPTION RENEWAL FOR NORTH WEST LEGAL CONSORTIUM - 2022/2023,19/08/2022,0000481000,500.00,Revenue,SEFTON M B COUNCIL,0
South Ribble Borough Council,http://statistics.data.gov.uk/id/local-authority/30UE,Development Control,Operational Equip & Tools,4010,Yearly lease and asset protection of HP XL-3600 Wide Format Printer plotter,12/08/2022,0000480374,"1,015.29",Revenue,Siemens Financial Services Limited,0
South Ribble Borough Council,http://statistics.data.gov.uk/id/local-authority/30UE,Cash and Cash Equivalents,Amount Paid,0030,NAME REDACTED donation,19/08/2022,0000480707,"1,000.00",Revenue,SLEAP,0
South Ribble Borough Council,http://statistics.data.gov.uk/id/local-authority/30UE,Central Support Services,Short Course,1402,NAME REDACTED TO ATTEND PASMA TRAINING IN PRESTON ON 5 JULY 2022,12/08/2022,0000480106,120.00,Revenue,Smiths Equipment Hire Limited,0
South Ribble Borough Council,http://statistics.data.gov.uk/id/local-authority/30UE,Central Support Services,Short Course,1402,NAME REDACTED TO ATTEND PASMA TRAINING IN PRESTON ON 5 JULY 2022,12/08/2022,0000480106,120.00,Revenue,Smiths Equipment Hire Limited,0
South Ribble Borough Council,http://statistics.data.gov.uk/id/local-authority/30UE,Central Support Services,Short Course,1402,pasma reg fee,12/08/2022,0000480106,40.00,Revenue,Smiths Equipment Hire Limited,0
South Ribble Borough Council,http://statistics.data.gov.uk/id/local-authority/30UE,Short Term Creditors,Leisure - Sundry Debtors,0023,debtor invoices,26/08/2022,0000480609,"43,301.55",Revenue,South Ribble Leisure Ltd,0
South Ribble Borough Council,http://statistics.data.gov.uk/id/local-authority/30UE,Central Support Services,Materials General,4040,1 x body module 1 x spec repair VU58JXK JFC18042,12/08/2022,0000480765,"1,045.00",Revenue,Southfield RCV Services Limited,0
South Ribble Borough Council,http://statistics.data.gov.uk/id/local-authority/30UE,Central Support Services,External Contractors Charges,4570,Spec repair  VO65 KPZ JFC 18808,12/08/2022,0000480829,360.00,Revenue,Southfield RCV Services Limited,0
South Ribble Borough Council,http://statistics.data.gov.uk/id/local-authority/30UE,Cash and Cash Equivalents,Amount Paid,0030,NAME REDACTED donation,19/08/2022,0000480708,"1,000.00",Revenue,ST CATHERINES HOSPICE (LANCASHIRE) LTD,0
South Ribble Borough Council,http://statistics.data.gov.uk/id/local-authority/30UE,Service Management & Support,Diesel Fuel,3132,"feeder tank at Unit 81 Bison Place, Moss Side- Key for cabinet is available from the main office",05/08/2022,0000480569,"24,774.24",Revenue,Standard Fuel Oils LtdMain,0
South Ribble Borough Council,http://statistics.data.gov.uk/id/local-authority/30UE,Capital,Capital Grant,C570,DFG WORK TO SUPPLY AND INSTALL A STAIRLIFT  AT  ADDRESS REDACTED    AS PER QUOTE,26/08/2022,0000480704,"2,670.73",Revenue,Stannah Lift Services Ltd,0
South Ribble Borough Council,http://statistics.data.gov.uk/id/local-authority/30UE,Central Support Services,Computer Equipment,4241,100 DIGITUS UNIVERSAL DUAL MONITOR CLAMP MOUNTS,26/08/2022,0000480937,"3,100.00",Revenue,Starcom Technologies,0
South Ribble Borough Council,http://statistics.data.gov.uk/id/local-authority/30UE,Central Support Services,Materials General,4040,Start Sensor TEL 2387 VO65 KPZ JFC 18635,05/08/2022,0000480542,305.85,Revenue,Taylor Enginering & Fabrications Ltd,0
South Ribble Borough Council,http://statistics.data.gov.uk/id/local-authority/30UE,Central Support Services,Materials General,4040,4 Way Splitter TEL 2310 VO65 KPZ JFC 18635,05/08/2022,0000480542,110.86,Revenue,Taylor Enginering & Fabrications Ltd,0
South Ribble Borough Council,http://statistics.data.gov.uk/id/local-authority/30UE,Central Support Services,Materials General,4040,carriage,05/08/2022,0000480542,10.65,Revenue,Taylor Enginering & Fabrications Ltd,0
South Ribble Borough Council,http://statistics.data.gov.uk/id/local-authority/30UE,Central Support Services,Operational Equip & Tools,4010,RBT re-calibration 6 Month,12/08/2022,0000480528,420.00,Revenue,Tecalemit Garage Equipment Company Limited,0
South Ribble Borough Council,http://statistics.data.gov.uk/id/local-authority/30UE,Community Development,Miscellaneous Expenses,4851,P.A. systems & administration for Longton Live 2022,19/08/2022,0000480984,"3,475.00",Revenue,The Creative Network,0
South Ribble Borough Council,http://statistics.data.gov.uk/id/local-authority/30UE,Surplus or Deficit on Trading,Electricity,2303,12/7 to 1/8/22,19/08/2022,0000480736,338.18,Revenue,The renewable energy company Ltd (Ecotircity),0
South Ribble Borough Council,http://statistics.data.gov.uk/id/local-authority/30UE,Central Support Services,Occupational Health,1408,PLEASE PROVIDE 6 X SESSIONS OF THERAPY FOR NAME REDACTED AS AGREED,12/08/2022,0000480644,350.00,Revenue,THE THERAPY COMPANY,0
South Ribble Borough Council,http://statistics.data.gov.uk/id/local-authority/30UE,Homelessness,Temporary Accommodation,5311,SB x3 adults - outstanding balance for stay at White Horse 24.06.2022-30.06.2022.,19/08/2022,0000480999,450.00,Revenue,The White Horse,0
South Ribble Borough Council,http://statistics.data.gov.uk/id/local-authority/30UE,Central Support Services,Materials General,4040,TR242,12/08/2022,0000480748,271.75,Revenue,Tomlinson Road Tyres,0
South Ribble Borough Council,http://statistics.data.gov.uk/id/local-authority/30UE,Central Support Services,Materials General,4040,4 X Tyres195/70/15C BR19 ODN JFC18627,12/08/2022,0000480758,270.00,Revenue,Tomlinson Road Tyres,0
South Ribble Borough Council,http://statistics.data.gov.uk/id/local-authority/30UE,Economic Development,Gas,2304,30/4 to 31/7/22,19/08/2022,0000480734,365.76,Revenue,Total Gas & power Ltd,0
South Ribble Borough Council,http://statistics.data.gov.uk/id/local-authority/30UE,Central Support Services,Gas,2304,30/4 to 31/7/22,19/08/2022,0000480735,740.17,Revenue,Total Gas & power Ltd,0
South Ribble Borough Council,http://statistics.data.gov.uk/id/local-authority/30UE,Tourism,Electricity,2303,1/7 to 31/7/22,19/08/2022,0000480857,"1,700.08",Revenue,Total Gas & power Ltd,0
South Ribble Borough Council,http://statistics.data.gov.uk/id/local-authority/30UE,Open Spaces,Electricity,2303,1/7 to 31/7/22,19/08/2022,0000480868,469.48,Revenue,Total Gas & power Ltd,0
South Ribble Borough Council,http://statistics.data.gov.uk/id/local-authority/30UE,Central Support Services,Electricity,2303,1/7 to 31/7/22,12/08/2022,0000480869,"2,437.13",Revenue,Total Gas & power Ltd,0
South Ribble Borough Council,http://statistics.data.gov.uk/id/local-authority/30UE,Central Support Services,Electricity,2303,1/7 to 31/7/22,12/08/2022,0000480871,"2,452.54",Revenue,Total Gas & power Ltd,0
South Ribble Borough Council,http://statistics.data.gov.uk/id/local-authority/30UE,Open Spaces,Electricity,2303,1/6 to 29/7/22,12/08/2022,0000480877,586.21,Revenue,Total Gas & power Ltd,0
South Ribble Borough Council,http://statistics.data.gov.uk/id/local-authority/30UE,Open Spaces,Electricity,2303,4/5 to 3/8/22,12/08/2022,0000480879,662.68,Revenue,Total Gas & power Ltd,0
South Ribble Borough Council,http://statistics.data.gov.uk/id/local-authority/30UE,Culture & Heritage,Gas,2304,30/4 to 31/7/22,19/08/2022,0000480994,438.33,Revenue,Total Gas & power Ltd,0
South Ribble Borough Council,http://statistics.data.gov.uk/id/local-authority/30UE,Open Spaces,Gas,2304,30/4 to 31/7/22,19/08/2022,0000480995,361.83,Revenue,Total Gas & power Ltd,0
South Ribble Borough Council,http://statistics.data.gov.uk/id/local-authority/30UE,Economic Development,Professional Fees,4510,South Ribble Borough Council - Levelling Up Fund,26/08/2022,0000481143,"6,000.00",Revenue,Trebbi Continuum Limited,0
South Ribble Borough Council,http://statistics.data.gov.uk/id/local-authority/30UE,Economic Development,Professional Fees,4510,South Ribble Borough Council - Levelling Up Fund,26/08/2022,0000481157,"16,550.00",Revenue,Trebbi Continuum Limited,0
South Ribble Borough Council,http://statistics.data.gov.uk/id/local-authority/30UE,Capital,Cap Contract Payment,C230,Leyland Town Deal - Arboricultural Survey & Protection Plan,26/08/2022,0000480852,"1,497.20",Revenue,Treescapes Consultancy Ltd,0
South Ribble Borough Council,http://statistics.data.gov.uk/id/local-authority/30UE,Open Spaces,External Contractors Charges,4570,Fell and remove 1 x Elm to just below hedge height,26/08/2022,0000480826,"1,250.00",Revenue,Trunks Tree Care Ltd,0
South Ribble Borough Council,http://statistics.data.gov.uk/id/local-authority/30UE,Central Support Services,Operational Equip & Tools,4010, LITTER PICKER -Soft grip salmon litter pickers LITLP33,12/08/2022,0000480825,504.00,Revenue,Tudor (UK) Ltd t/a Tudor Environmental,0
South Ribble Borough Council,http://statistics.data.gov.uk/id/local-authority/30UE,Economic Development,Contributions to Other Bodies,4730,Year 2 delivery of the Credit Union project,12/08/2022,0000480834,"12,500.00",Revenue,Unify Credit Union Ltd,0
South Ribble Borough Council,http://statistics.data.gov.uk/id/local-authority/30UE,Capital,Cap Vehicles,C440,Yamaha Kodiak 450 ATV,12/08/2022,0000480823,"9,995.00",Revenue,VALE ENGINEERING (YORK) LTD,0
South Ribble Borough Council,http://statistics.data.gov.uk/id/local-authority/30UE,Central Support Services,Agency Staff,1121,COST OF ENGAGING LOCUM SOLICITOR NAME REDACTED - CONTRACT BEGINS 6 MAY 2022,05/08/2022,0000480662,"1,909.95",Revenue,VENN GROUP LTD,0
South Ribble Borough Council,http://statistics.data.gov.uk/id/local-authority/30UE,Central Support Services,Agency Staff,1121,COST OF ENGAGING LOCUM SOLICITOR NAME REDACTED - CONTRACT BEGINS 6 MAY 2022,19/08/2022,0000480985,"1,512.00",Revenue,VENN GROUP LTD,0
South Ribble Borough Council,http://statistics.data.gov.uk/id/local-authority/30UE,Surplus or Deficit on Trading,Agency Staff,1121,To offer an Interim Estates Surveyor position  to NAME REDACTED to provide professions surveying services for the duration of the contract,12/08/2022,0000480618,"1,675.00",Revenue,Vivid Resourcing,0
South Ribble Borough Council,http://statistics.data.gov.uk/id/local-authority/30UE,Central Support Services,Agency Staff,1121,Consultant Planning Officer NAME REDACTED - 6 month contract to provide additional support to Development Management.,12/08/2022,0000480642,"2,021.25",Revenue,Vivid Resourcing,0
South Ribble Borough Council,http://statistics.data.gov.uk/id/local-authority/30UE,Surplus or Deficit on Trading,Consultancy Fees,4541,To offer an interim Estates surveyor position to NAME REDACTED to provide professional surveying services for the duration of the contract,26/08/2022,0000480762,"1,175.00",Revenue,Vivid Resourcing,0
South Ribble Borough Council,http://statistics.data.gov.uk/id/local-authority/30UE,Central Support Services,Agency Staff,1121,Consultant Planning Officer NAME REDACTED - 6 month contract to provide additional support to Development Management.,12/08/2022,0000480822,"2,060.63",Revenue,Vivid Resourcing,0
South Ribble Borough Council,http://statistics.data.gov.uk/id/local-authority/30UE,Central Support Services,Network and Security,4247,01 july 2022,26/08/2022,0000481086,"1,076.43",Revenue,VODAFONE RE:CABLE & WIRELESS UK,0
South Ribble Borough Council,http://statistics.data.gov.uk/id/local-authority/30UE,Central Support Services,Network and Security,4247,01 April 2022,26/08/2022,0000481087,"1,076.43",Revenue,VODAFONE RE:CABLE & WIRELESS UK,0
South Ribble Borough Council,http://statistics.data.gov.uk/id/local-authority/30UE,Central Support Services,Network and Security,4247,01 Oct 2021,26/08/2022,0000481088,"1,076.43",Revenue,VODAFONE RE:CABLE & WIRELESS UK,0
South Ribble Borough Council,http://statistics.data.gov.uk/id/local-authority/30UE,Culture & Heritage,Water Charges(Metered),2511,01/04/2022 - 31/03/2023,26/08/2022,0000481062,"6,510.05",Revenue,WaterPlus ,0
South Ribble Borough Council,http://statistics.data.gov.uk/id/local-authority/30UE,Recreation & Sport,Planned Annual Repair & Maintenance,2021,Continuation of hire of unit at Penwortham Holme as per NAME REDACTED request for 2022/2023,12/08/2022,0000480820,434.00,Revenue,Wernick Hire Ltd,0
South Ribble Borough Council,http://statistics.data.gov.uk/id/local-authority/30UE,Open Spaces,External Contractors Charges,4570,Fell 1 x ash tree as side of NAME REDACTED,12/08/2022,0000480641,"1,875.00",Revenue,WESTFIELD TREE SERVICES LTD,0
South Ribble Borough Council,http://statistics.data.gov.uk/id/local-authority/30UE,Central Support Services,Franked Post,4292,Ongoing mail delivery costs at South Ribble,05/08/2022,0000480660,389.58,Revenue,WHISTL  UK LTD,0
South Ribble Borough Council,http://statistics.data.gov.uk/id/local-authority/30UE,Central Support Services,Franked Post,4292,Ongoing mail delivery costs at South Ribble,12/08/2022,0000480811,523.11,Revenue,WHISTL  UK LTD,0
South Ribble Borough Council,http://statistics.data.gov.uk/id/local-authority/30UE,Central Support Services,Franked Post,4292,Ongoing mail delivery costs at South Ribble,26/08/2022,0000481131,879.72,Revenue,WHISTL  UK LTD,0
South Ribble Borough Council,http://statistics.data.gov.uk/id/local-authority/30UE,Central Support Services,Software Licensing,4243,"One Off Costs	Whitespace Municipal Licence 20,000 Whitespace Municipal Service Whitespace Analytics Licence",26/08/2022,0000479845,"51,287.00",Revenue,Whitespace Work Software Ltd,0
South Ribble Borough Council,http://statistics.data.gov.uk/id/local-authority/30UE,Central Support Services,Software Licensing,4243,"One Off Costs	Whitespace Municipal Licence 20,000 Whitespace Municipal Service Whitespace Analytics Licence",19/08/2022,0000480720,"5,000.00",Revenue,Whitespace Work Software Ltd,0
South Ribble Borough Council,http://statistics.data.gov.uk/id/local-authority/30UE,Capital,Cap Contract Payment,C230, For � WASH / The artistry house Interior Design work� -  as per NAME REDACTED request,12/08/2022,0000480623,"7,784.00",Revenue,Wilson Mason LLP,0
South Ribble Borough Council,http://statistics.data.gov.uk/id/local-authority/30UE,Capital,Cap Contract Payment,C230,Provision of Architect Services and Procurement Support Services to RIBA Stage 3 for the Leyland Town Deal Development,26/08/2022,0000480757,"25,251.44",Revenue,Wilson Mason LLP,0
South Ribble Borough Council,http://statistics.data.gov.uk/id/local-authority/30UE,Capital,Cap Contract Payment,C230,Provision of Architect Services and Procurement Support Services to RIBA Stage 3 for the Leyland Town Deal Development,26/08/2022,0000480819,956.25,Revenue,Wilson Mason LLP,0
South Ribble Borough Council,http://statistics.data.gov.uk/id/local-authority/30UE,Capital,Cap Contract Payment,C230, For �works to bring up to stage 3 spec from planning submission pack�  - as per NAME REDACTED request,26/08/2022,0000480898,"3,026.00",Revenue,Wilson Mason LLP,0
